{"text_format":"3","workbook":"xlsx","n_sheets":4,"sheets":["Kokkuvõte","Varad","Kohustused","Kategooriad"],"not_rendered":{"defined_names":10},"read":"whole","date_system":"1900"}

{"sheet":"Kokkuvõte","index":0,"n_rows":12,"n_cols":4,"rows_kept":12}
[null,"Bilanss"]
[null,null,{"$f":"\"FA-\"&YEAR(TODAY())-1","v":"FA-2016"},{"$f":"\"FA-\"&YEAR(TODAY())","v":"FA-2017"}]
[null,"Varade tüüp","Eelmine aasta","Jooksev aasta"]
[null,"Käibevarad",{"$f":"SUMIFS(Varad[Eelmine aasta],Varad[Varade tüüp],Armatuurlaud[[#This Row],[Varade tüüp]])+SUMIFS(Kohustused[Eelmine aasta],Kohustused[Kohustuste tüüp],Armatuurlaud[[#This Row],[Varade tüüp]])","v":600},{"$f":"SUMIFS(Varad[Jooksev aasta],Varad[Varade tüüp],Armatuurlaud[[#This Row],[Varade tüüp]])+SUMIFS(Kohustused[Jooksev aasta],Kohustused[Kohustuste tüüp],Armatuurlaud[[#This Row],[Varade tüüp]])","v":600}]
[null,"Põhivara",{"$f":"SUMIFS(Varad[Eelmine aasta],Varad[Varade tüüp],Armatuurlaud[[#This Row],[Varade tüüp]])+SUMIFS(Kohustused[Eelmine aasta],Kohustused[Kohustuste tüüp],Armatuurlaud[[#This Row],[Varade tüüp]])","v":{"v":-100,"d":"-100 "}},{"$f":"SUMIFS(Varad[Jooksev aasta],Varad[Varade tüüp],Armatuurlaud[[#This Row],[Varade tüüp]])+SUMIFS(Kohustused[Jooksev aasta],Kohustused[Kohustuste tüüp],Armatuurlaud[[#This Row],[Varade tüüp]])","v":{"v":-85,"d":"-85 "}}]
[null,"Muud varad",{"$f":"SUMIFS(Varad[Eelmine aasta],Varad[Varade tüüp],Armatuurlaud[[#This Row],[Varade tüüp]])+SUMIFS(Kohustused[Eelmine aasta],Kohustused[Kohustuste tüüp],Armatuurlaud[[#This Row],[Varade tüüp]])","v":0},{"$f":"SUMIFS(Varad[Jooksev aasta],Varad[Varade tüüp],Armatuurlaud[[#This Row],[Varade tüüp]])+SUMIFS(Kohustused[Jooksev aasta],Kohustused[Kohustuste tüüp],Armatuurlaud[[#This Row],[Varade tüüp]])","v":0}]
[null,"Lühiajalised kohustised",{"$f":"SUMIFS(Varad[Eelmine aasta],Varad[Varade tüüp],Armatuurlaud[[#This Row],[Varade tüüp]])+SUMIFS(Kohustused[Eelmine aasta],Kohustused[Kohustuste tüüp],Armatuurlaud[[#This Row],[Varade tüüp]])","v":500},{"$f":"SUMIFS(Varad[Jooksev aasta],Varad[Varade tüüp],Armatuurlaud[[#This Row],[Varade tüüp]])+SUMIFS(Kohustused[Jooksev aasta],Kohustused[Kohustuste tüüp],Armatuurlaud[[#This Row],[Varade tüüp]])","v":350}]
[null,"Pikaajalised kohustused",{"$f":"SUMIFS(Varad[Eelmine aasta],Varad[Varade tüüp],Armatuurlaud[[#This Row],[Varade tüüp]])+SUMIFS(Kohustused[Eelmine aasta],Kohustused[Kohustuste tüüp],Armatuurlaud[[#This Row],[Varade tüüp]])","v":0},{"$f":"SUMIFS(Varad[Jooksev aasta],Varad[Varade tüüp],Armatuurlaud[[#This Row],[Varade tüüp]])+SUMIFS(Kohustused[Jooksev aasta],Kohustused[Kohustuste tüüp],Armatuurlaud[[#This Row],[Varade tüüp]])","v":0}]
[null,"Omakapital",{"$f":"SUMIFS(Varad[Eelmine aasta],Varad[Varade tüüp],Armatuurlaud[[#This Row],[Varade tüüp]])+SUMIFS(Kohustused[Eelmine aasta],Kohustused[Kohustuste tüüp],Armatuurlaud[[#This Row],[Varade tüüp]])","v":0},{"$f":"SUMIFS(Varad[Jooksev aasta],Varad[Varade tüüp],Armatuurlaud[[#This Row],[Varade tüüp]])+SUMIFS(Kohustused[Jooksev aasta],Kohustused[Kohustuste tüüp],Armatuurlaud[[#This Row],[Varade tüüp]])","v":350}]
[null,"Varad kokku",{"$f":"Varad[[#Totals],[Eelmine aasta]]","v":500},{"$f":"Varad[[#Totals],[Jooksev aasta]]","v":515}]
[null,"Kohustused kokku ja aktsiakapital",{"$f":"Kohustused[[#Totals],[Eelmine aasta]]","v":500},{"$f":"Kohustused[[#Totals],[Jooksev aasta]]","v":700}]
[null,"Saldo",{"$f":"C10-C11","v":0},{"$f":"D10-D11","v":{"v":-185,"d":"-185 "}}]

{"sheet":"Varad","index":1,"n_rows":14,"n_cols":5,"rows_kept":14}
[null,"Varad"]
[{"$nulls":3},{"$f":"FA_AASTA","v":"FA-2016"},{"$f":"FA_AASTA_2","v":"FA-2017"}]
[null,"Varade tüüp","Kirjeldus","Eelmine aasta","Jooksev aasta"]
[null,"Käibevarad","Sularaha",600,600]
[null,"Käibevarad","Investeeringud"]
[null,"Käibevarad","Varud"]
[null,"Käibevarad","Müügireskontro"]
[null,"Käibevarad","Avansskulud"]
[null,"Põhivara","Varad ja seadmed"]
[null,"Põhivara","Renditud vara parendamiskulutused"]
[null,"Põhivara","Kapital ja muud investeeringud"]
[null,"Põhivara","Miinus akumuleeritud amortisatsiooni (negatiivne väärtus)",{"v":-100,"d":"-100 "},{"v":-85,"d":"-85 "}]
[null,"Muud varad","Heategevus"]
[null,"Varad kokku",null,{"$f":"SUBTOTAL(109,Varad[Eelmine aasta])","v":500},{"$f":"SUBTOTAL(109,Varad[Jooksev aasta])","v":515}]

{"sheet":"Kohustused","index":2,"n_rows":12,"n_cols":5,"rows_kept":12}
[null,"Kohustused"]
[{"$nulls":3},{"$f":"FA_AASTA","v":"FA-2016"},{"$f":"FA_AASTA_2","v":"FA-2017"}]
[null,"Kohustuste tüüp","Kirjeldus","Eelmine aasta","Jooksev aasta"]
[null,"Lühiajalised kohustised","Ostureskontro",null,350]
[null,"Lühiajalised kohustised","Kogunenud tötöasud"]
[null,"Lühiajalised kohustised","Kogunenud hüvitised",500]
[null,"Lühiajalised kohustised","Makstav tulumaks"]
[null,"Lühiajalised kohustised","Kapitali tulud"]
[null,"Pikaajalised kohustused","Makstavad hüpoteeklaenud"]
[null,"Omakapital","Investeeringukapital",null,350]
[null,"Omakapital","Kogunenud jaotamata kasum"]
[null,"Kohustused kokku ja aktsiakapital",null,{"$f":"SUBTOTAL(109,Kohustused[Eelmine aasta])","v":500},{"$f":"SUBTOTAL(109,Kohustused[Jooksev aasta])","v":700}]

{"sheet":"Kategooriad","index":3,"n_rows":9,"n_cols":2,"rows_kept":9}
[null,"Kategooriad"]
[]
[null,"Kategooriad"]
[null,"Käibevarad"]
[null,"Põhivara"]
[null,"Muud varad"]
[null,"Lühiajalised kohustised"]
[null,"Pikaajalised kohustused"]
[null,"Omakapital"]